Workbook

Sheet Notes
B2: Post-COVID clinic Friends and Family Test (FFT) data - March 2025 | H2: Show data for:

Sheet Summary
B3: FFT | C3: Number of organisations submitting | D3: Total responses to date | E3: Responses | G3: Percentage Positive | I3: Percentage Negative
C4: 2025-03-01 | D4: 2025-03-01 | E4: 2025-03-01 | F4: 2025-02-24 | G4: 2025-03-01 | H4: 2025-02-24 | I4: 2025-03-01 | J4: 2025-02-24
B5: Post Covid Q1 | C5: 59 | D5: 32500 | E5: 212 | F5: 267 | G5: 0.929245283 | H5: 0.9550561798 | I5: 0.02830188679 | J5: 0.007490636704
B6: Post Covid Q2 | C6: 59 | D6: 17050 | E6: 193 | F6: 219 | G6: 0.9637305699 | H6: 0.9726027397 | I6: 0.03626943005 | J6: 0.02739726027
B7: Post Covid Q3 | C7: 59 | D7: 17772 | E7: 192 | F7: 220 | G7: 0.9895833333 | H7: 0.9909090909 | I7: 0.01041666667 | J7: 0.009090909091

Sheet ICB
A3: ICB Code | B3: ICB Name | C3: Question 1 | F3: Question 1 | L3: Question 2 | P3: Question 2 | S3: Question 3 | V3: Question 3
C4: Total Responses | D4: Percentage Positive | E4: Percentage Negative | F4: Breakdown of Responses | L4: Total Responses | M4: Total Eligible | N4: Percentage Positive | O4: Percentage Negative | P4: Breakdown of Responses | S4: Total Responses | T4: Percentage Positive | U4: Percentage Negative | V4: Breakdown of Responses
F5: Very Good | G5: Good | H5: Neither Good nor Poor | I5: Poor | J5: Very Poor | K5: Don't Know | P5: Yes definitely | Q5: Yes to some extent | R5: No | V5: Yes definitely | W5: Yes to some extent | X5: No
B6: England | C6: 212 | D6: 0.929245283 | E6: 0.02830188679 | F6: 179 | G6: 18 | H6: 7 | I6: 1 | J6: 5 | K6: 2 | L6: 193 | M6: 1491 | N6: 0.9637305699 | O6: 0.03626943005 | P6: 165 | Q6: 21 | R6: 7 | S6: 192 | T6: 0.9895833333 | U6: 0.01041666667 | V6: 181 | W6: 9 | X6: 2
B7: Selection (excluding suppressed data) | C7: =SUBTOTAL(9,C8:C61) -> 212 | D7: =IFERROR((F7+G7)/SUM(F7:K7), "-") -> 0.9340659341 | E7: =IFERROR((I7+J7)/SUM(F7:K7), "-") -> 0.02747252747 | F7: =SUBTOTAL(9,F8:F61) -> 154 | G7: 16 | H7: 7 | I7: 0 | J7: 5 | K7: 0 | L7: 193 | M7: 1491 | N7: =IFERROR((P7+Q7)/SUM(P7:R7), "-") -> 0.9693251534 | O7: =IFERROR(R7/SUM(P7:R7), "-") -> 0.03067484663 | P7: 138 | Q7: 20 | R7: 5 | S7: =SUBTOTAL(9,S8:S61) -> 192 | T7: =IFERROR((V7+W7)/SUM(V7:X7), "-") -> 0.987654321 | U7: =IFERROR(X7/SUM(V7:X7), "-") -> 0.01234567901 | V7: =SUBTOTAL(9,V8:V61) -> 153 | W7: 7 | X7: 2
A8: QE1 | B8: LANCASHIRE AND SOUTH CUMBRIA ICB | C8: 0 | D8: NA | E8: NA | F8: 0 | G8: 0 | H8: 0 | I8: 0 | J8: 0 | K8: 0 | L8: 0 | M8: 0 | N8: NA | O8: NA | P8: 0 | Q8: 0 | R8: 0 | S8: 0 | T8: NA | U8: NA | V8: 0 | W8: 0 | X8: 0
A9: QF7 | B9: SOUTH YORKSHIRE ICB | C9: 11 | D9: 0.9090909091 | E9: 0 | F9: 10 | G9: 0 | H9: 1 | I9: 0 | J9: 0 | K9: 0 | L9: 11 | M9: 210 | N9: 1 | O9: 0 | P9: 10 | Q9: 1 | R9: 0 | S9: 11 | T9: 1 | U9: 0 | V9: 10 | W9: 1 | X9: 0
A10: QGH | B10: HEREFORDSHIRE AND WORCESTERSHIRE ICB | C10: 0 | D10: NA | E10: NA | F10: 0 | G10: 0 | H10: 0 | I10: 0 | J10: 0 | K10: 0 | L10: 0 | M10: 0 | N10: NA | O10: NA | P10: 0 | Q10: 0 | R10: 0 | S10: 0 | T10: NA | U10: NA | V10: 0 | W10: 0 | X10: 0
A11: QH8 | B11: MID AND SOUTH ESSEX ICB | C11: 0 | D11: NA | E11: NA | F11: 0 | G11: 0 | H11: 0 | I11: 0 | J11: 0 | K11: 0 | L11: 0 | M11: 0 | N11: NA | O11: NA | P11: 0 | Q11: 0 | R11: 0 | S11: 0 | T11: NA | U11: NA | V11: 0 | W11: 0 | X11: 0
A12: QHG | B12: BEDFORDSHIRE, LUTON AND MILTON KEYNES ICB | C12: 0 | D12: NA | E12: NA | F12: 0 | G12: 0 | H12: 0 | I12: 0 | J12: 0 | K12: 0 | L12: 0 | M12: 0 | N12: NA | O12: NA | P12: 0 | Q12: 0 | R12: 0 | S12: 0 | T12: NA | U12: NA | V12: 0 | W12: 0 | X12: 0
A13: QHL | B13: BIRMINGHAM AND SOLIHULL ICB | C13: 4 | D13: * | E13: * | F13: * | G13: * | H13: * | I13: * | J13: * | K13: * | L13: 4 | M13: 0 | N13: * | O13: * | P13: * | Q13: * | R13: * | S13: 4 | T13: * | U13: * | V13: * | W13: * | X13: *
A14: QHM | B14: NORTH EAST AND NORTH CUMBRIA ICB | C14: 3 | D14: * | E14: * | F14: * | G14: * | H14: * | I14: * | J14: * | K14: * | L14: 3 | M14: 9 | N14: * | O14: * | P14: * | Q14: * | R14: * | S14: 3 | T14: * | U14: * | V14: * | W14: * | X14: *
A15: QJ2 | B15: DERBY AND DERBYSHIRE ICB | C15: 22 | D15: 0.8181818182 | E15: 0.09090909091 | F15: 16 | G15: 2 | H15: 2 | I15: 0 | J15: 2 | K15: 0 | L15: 22 | M15: 0 | N15: 0.9090909091 | O15: 0.09090909091 | P15: 14 | Q15: 6 | R15: 2 | S15: 22 | T15: 1 | U15: 0 | V15: 19 | W15: 3 | X15: 0
A16: QJG | B16: SUFFOLK AND NORTH EAST ESSEX ICB | C16: 0 | D16: NA | E16: NA | F16: 0 | G16: 0 | H16: 0 | I16: 0 | J16: 0 | K16: 0 | L16: 0 | M16: 0 | N16: NA | O16: NA | P16: 0 | Q16: 0 | R16: 0 | S16: 0 | T16: NA | U16: NA | V16: 0 | W16: 0 | X16: 0
A17: QJK | B17: DEVON ICB | C17: 1 | D17: * | E17: * | F17: * | G17: * | H17: * | I17: * | J17: * | K17: * | L17: 1 | M17: 1 | N17: * | O17: * | P17: * | Q17: * | R17: * | S17: 1 | T17: * | U17: * | V17: * | W17: * | X17: *
A18: QJM | B18: LINCOLNSHIRE ICB | C18: 21 | D18: 1 | E18: 0 | F18: 17 | G18: 4 | H18: 0 | I18: 0 | J18: 0 | K18: 0 | L18: 21 | M18: 230 | N18: 1 | O18: 0 | P18: 19 | Q18: 2 | R18: 0 | S18: 20 | T18: 1 | U18: 0 | V18: 20 | W18: 0 | X18: 0
A19: QK1 | B19: LEICESTER, LEICESTERSHIRE AND RUTLAND ICB | C19: 0 | D19: NA | E19: NA | F19: 0 | G19: 0 | H19: 0 | I19: 0 | J19: 0 | K19: 0 | L19: 0 | M19: 44 | N19: NA | O19: NA | P19: 0 | Q19: 0 | R19: 0 | S19: 0 | T19: NA | U19: NA | V19: 0 | W19: 0 | X19: 0
A20: QKK | B20: SOUTH EAST LONDON ICB | C20: 1 | D20: * | E20: * | F20: * | G20: * | H20: * | I20: * | J20: * | K20: * | L20: 1 | M20: 11 | N20: * | O20: * | P20: * | Q20: * | R20: * | S20: 1 | T20: * | U20: * | V20: * | W20: * | X20: *
A21: QKS | B21: KENT AND MEDWAY ICB | C21: 9 | D21: 0.6666666667 | E21: 0.1111111111 | F21: 4 | G21: 2 | H21: 2 | I21: 0 | J21: 1 | K21: 0 | L21: 9 | M21: 4 | N21: 0.8888888889 | O21: 0.1111111111 | P21: 4 | Q21: 4 | R21: 1 | S21: 9 | T21: 1 | U21: 0 | V21: 7 | W21: 2 | X21: 0
A22: QM7 | B22: HERTFORDSHIRE AND WEST ESSEX ICB | C22: 0 | D22: NA | E22: NA | F22: 0 | G22: 0 | H22: 0 | I22: 0 | J22: 0 | K22: 0 | L22: 0 | M22: 0 | N22: NA | O22: NA | P22: 0 | Q22: 0 | R22: 0 | S22: 0 | T22: NA | U22: NA | V22: 0 | W22: 0 | X22: 0
A23: QMF | B23: NORTH EAST LONDON ICB | C23: 0 | D23: NA | E23: NA | F23: 0 | G23: 0 | H23: 0 | I23: 0 | J23: 0 | K23: 0 | L23: 0 | M23: 42 | N23: NA | O23: NA | P23: 0 | Q23: 0 | R23: 0 | S23: 0 | T23: NA | U23: NA | V23: 0 | W23: 0 | X23: 0
A24: QMJ | B24: NORTH CENTRAL LONDON ICB | C24: 0 | D24: NA | E24: NA | F24: 0 | G24: 0 | H24: 0 | I24: 0 | J24: 0 | K24: 0 | L24: 0 | M24: 0 | N24: NA | O24: NA | P24: 0 | Q24: 0 | R24: 0 | S24: 0 | T24: NA | U24: NA | V24: 0 | W24: 0 | X24: 0
A25: QMM | B25: NORFOLK AND WAVENEY ICB | C25: 0 | D25: NA | E25: NA | F25: 0 | G25: 0 | H25: 0 | I25: 0 | J25: 0 | K25: 0 | L25: 0 | M25: 0 | N25: NA | O25: NA | P25: 0 | Q25: 0 | R25: 0 | S25: 0 | T25: NA | U25: NA | V25: 0 | W25: 0 | X25: 0
A26: QNC | B26: STAFFORDSHIRE AND STOKE-ON-TRENT ICB | C26: 12 | D26: 1 | E26: 0 | F26: 11 | G26: 1 | H26: 0 | I26: 0 | J26: 0 | K26: 0 | L26: 12 | M26: 0 | N26: 1 | O26: 0 | P26: 12 | Q26: 0 | R26: 0 | S26: 12 | T26: 1 | U26: 0 | V26: 12 | W26: 0 | X26: 0
A27: QNQ | B27: FRIMLEY ICB | C27: 0 | D27: NA | E27: NA | F27: 0 | G27: 0 | H27: 0 | I27: 0 | J27: 0 | K27: 0 | L27: 0 | M27: 0 | N27: NA | O27: NA | P27: 0 | Q27: 0 | R27: 0 | S27: 0 | T27: NA | U27: NA | V27: 0 | W27: 0 | X27: 0
A28: QNX | B28: SUSSEX ICB | C28: 0 | D28: NA | E28: NA | F28: 0 | G28: 0 | H28: 0 | I28: 0 | J28: 0 | K28: 0 | L28: 0 | M28: 0 | N28: NA | O28: NA | P28: 0 | Q28: 0 | R28: 0 | S28: 0 | T28: NA | U28: NA | V28: 0 | W28: 0 | X28: 0
A29: QOC | B29: SHROPSHIRE, TELFORD AND WREKIN ICB | C29: 3 | D29: * | E29: * | F29: * | G29: * | H29: * | I29: * | J29: * | K29: * | L29: 3 | M29: 0 | N29: * | O29: * | P29: * | Q29: * | R29: * | S29: 3 | T29: * | U29: * | V29: * | W29: * | X29: *
A30: QOP | B30: GREATER MANCHESTER ICB | C30: 3 | D30: * | E30: * | F30: * | G30: * | H30: * | I30: * | J30: * | K30: * | L30: 3 | M30: 95 | N30: * | O30: * | P30: * | Q30: * | R30: * | S30: 3 | T30: * | U30: * | V30: * | W30: * | X30: *
A31: QOQ | B31: HUMBER AND NORTH YORKSHIRE ICB | C31: 0 | D31: NA | E31: NA | F31: 0 | G31: 0 | H31: 0 | I31: 0 | J31: 0 | K31: 0 | L31: 0 | M31: 1 | N31: NA | O31: NA | P31: 0 | Q31: 0 | R31: 0 | S31: 0 | T31: NA | U31: NA | V31: 0 | W31: 0 | X31: 0
A32: QOX | B32: BATH AND NORTH EAST SOMERSET, SWINDON AND WILTSHIRE ICB | C32: 0 | D32: NA | E32: NA | F32: 0 | G32: 0 | H32: 0 | I32: 0 | J32: 0 | K32: 0 | L32: 0 | M32: 0 | N32: NA | O32: NA | P32: 0 | Q32: 0 | R32: 0 | S32: 0 | T32: NA | U32: NA | V32: 0 | W32: 0 | X32: 0
A33: QPM | B33: NORTHAMPTONSHIRE ICB | C33: 1 | D33: * | E33: * | F33: * | G33: * | H33: * | I33: * | J33: * | K33: * | L33: 1 | M33: 0 | N33: * | O33: * | P33: * | Q33: * | R33: * | S33: 1 | T33: * | U33: * | V33: * | W33: * | X33: *
A34: QR1 | B34: GLOUCESTERSHIRE ICB | C34: 3 | D34: * | E34: * | F34: * | G34: * | H34: * | I34: * | J34: * | K34: * | L34: 3 | M34: 0 | N34: * | O34: * | P34: * | Q34: * | R34: * | S34: 3 | T34: * | U34: * | V34: * | W34: * | X34: *
A35: QRL | B35: HAMPSHIRE AND ISLE OF WIGHT ICB | C35: 26 | D35: 0.9230769231 | E35: 0 | F35: 24 | G35: 0 | H35: 2 | I35: 0 | J35: 0 | K35: 0 | L35: 26 | M35: 772 | N35: 1 | O35: 0 | P35: 24 | Q35: 2 | R35: 0 | S35: 26 | T35: 1 | U35: 0 | V35: 26 | W35: 0 | X35: 0
A36: QRV | B36: NORTH WEST LONDON ICB | C36: 0 | D36: NA | E36: NA | F36: 0 | G36: 0 | H36: 0 | I36: 0 | J36: 0 | K36: 0 | L36: 0 | M36: 0 | N36: NA | O36: NA | P36: 0 | Q36: 0 | R36: 0 | S36: 0 | T36: NA | U36: NA | V36: 0 | W36: 0 | X36: 0
A37: QSL | B37: SOMERSET ICB | C37: 0 | D37: NA | E37: NA | F37: 0 | G37: 0 | H37: 0 | I37: 0 | J37: 0 | K37: 0 | L37: 0 | M37: 0 | N37: NA | O37: NA | P37: 0 | Q37: 0 | R37: 0 | S37: 0 | T37: NA | U37: NA | V37: 0 | W37: 0 | X37: 0
A38: QT1 | B38: NOTTINGHAM AND NOTTINGHAMSHIRE ICB | C38: 0 | D38: NA | E38: NA | F38: 0 | G38: 0 | H38: 0 | I38: 0 | J38: 0 | K38: 0 | L38: 0 | M38: 1 | N38: NA | O38: NA | P38: 0 | Q38: 0 | R38: 0 | S38: 0 | T38: NA | U38: NA | V38: 0 | W38: 0 | X38: 0
A39: QT6 | B39: CORNWALL AND THE ISLES OF SCILLY ICB | C39: 17 | D39: 0.9411764706 | E39: 0.05882352941 | F39: 13 | G39: 3 | H39: 0 | I39: 0 | J39: 1 | K39: 0 | L39: 17 | M39: 0 | N39: 0.9411764706 | O39: 0.05882352941 | P39: 13 | Q39: 3 | R39: 1 | S39: 17 | T39: 0.9411764706 | U39: 0.05882352941 | V39: 16 | W39: 0 | X39: 1
A40: QU9 | B40: BUCKINGHAMSHIRE, OXFORDSHIRE AND BERKSHIRE WEST ICB | C40: 22 | D40: 1 | E40: 0 | F40: 19 | G40: 3 | H40: 0 | I40: 0 | J40: 0 | K40: 0 | L40: 22 | M40: 5 | N40: 1 | O40: 0 | P40: 20 | Q40: 2 | R40: 0 | S40: 22 | T40: 1 | U40: 0 | V40: 21 | W40: 1 | X40: 0
A41: QUA | B41: BLACK COUNTRY ICB | C41: 0 | D41: NA | E41: NA | F41: 0 | G41: 0 | H41: 0 | I41: 0 | J41: 0 | K41: 0 | L41: 0 | M41: 0 | N41: NA | O41: NA | P41: 0 | Q41: 0 | R41: 0 | S41: 0 | T41: NA | U41: NA | V41: 0 | W41: 0 | X41: 0
A42: QUE | B42: CAMBRIDGESHIRE AND PETERBOROUGH ICB | C42: 1 | D42: * | E42: * | F42: * | G42: * | H42: * | I42: * | J42: * | K42: * | L42: 1 | M42: 0 | N42: * | O42: * | P42: * | Q42: * | R42: * | S42: 1 | T42: * | U42: * | V42: * | W42: * | X42: *
A43: QUY | B43: BRISTOL, NORTH SOMERSET AND SOUTH GLOUCESTERSHIRE ICB | C43: 0 | D43: NA | E43: NA | F43: 0 | G43: 0 | H43: 0 | I43: 0 | J43: 0 | K43: 0 | L43: 0 | M43: 0 | N43: NA | O43: NA | P43: 0 | Q43: 0 | R43: 0 | S43: 0 | T43: NA | U43: NA | V43: 0 | W43: 0 | X43: 0
A44: QVV | B44: DORSET ICB | C44: 7 | D44: 0.8571428571 | E44: 0.1428571429 | F44: * | G44: * | H44: * | I44: * | J44: * | K44: * | L44: 7 | M44: 0 | N44: 1 | O44: 0 | P44: * | Q44: * | R44: * | S44: 7 | T44: 1 | U44: 0 | V44: * | W44: * | X44: *
A45: QWE | B45: SOUTH WEST LONDON ICB | C45: 2 | D45: * | E45: * | F45: * | G45: * | H45: * | I45: * | J45: * | K45: * | L45: 2 | M45: 0 | N45: * | O45: * | P45: * | Q45: * | R45: * | S45: 2 | T45: * | U45: * | V45: * | W45: * | X45: *
A46: QWO | B46: WEST YORKSHIRE ICB | C46: 21 | D46: 1 | E46: 0 | F46: 21 | G46: 0 | H46: 0 | I46: 0 | J46: 0 | K46: 0 | L46: 21 | M46: 48 | N46: 1 | O46: 0 | P46: 21 | Q46: 0 | R46: 0 | S46: 21 | T46: 1 | U46: 0 | V46: 21 | W46: 0 | X46: 0
A47: QWU | B47: COVENTRY AND WARWICKSHIRE ICB | C47: 1 | D47: * | E47: * | F47: * | G47: * | H47: * | I47: * | J47: * | K47: * | L47: 1 | M47: 12 | N47: * | O47: * | P47: * | Q47: * | R47: * | S47: 1 | T47: * | U47: * | V47: * | W47: * | X47: *
A48: QXU | B48: SURREY HEARTLANDS ICB | C48: 0 | D48: NA | E48: NA | F48: 0 | G48: 0 | H48: 0 | I48: 0 | J48: 0 | K48: 0 | L48: 0 | M48: 0 | N48: NA | O48: NA | P48: 0 | Q48: 0 | R48: 0 | S48: 0 | T48: NA | U48: NA | V48: 0 | W48: 0 | X48: 0
A49: QYG | B49: CHESHIRE AND MERSEYSIDE ICB | C49: 21 | D49: 0.9523809524 | E49: 0.04761904762 | F49: 19 | G49: 1 | H49: 0 | I49: 0 | J49: 1 | K49: 0 | L49: 2 | M49: 6 | N49: * | O49: * | P49: 1 | Q49: 0 | R49: 1 | S49: 2 | T49: * | U49: * | V49: 1 | W49: 0 | X49: 1

Sheet Organisations
A3: ICB Code | B3: Trust Code | C3: Trust Name | D3: Question 1 | G3: Question 1 | M3: Question 2 | Q3: Question 2 | T3: Question 3 | W3: Question 3 | Z3: Mode of Collection - Question 1
D4: Total Responses | E4: Percentage Positive | F4: Percentage Negative | G4: Breakdown of Responses | M4: Total Responses | N4: Total Eligible | O4: Percentage Positive | P4: Percentage Negative | Q4: Breakdown of Responses | T4: Total Responses | U4: Percentage Positive | V4: Percentage Negative | W4: Breakdown of Responses
G5: Very Good | H5: Good | I5: Neither Good nor Poor | J5: Poor | K5: Very Poor | L5: Don't Know | Q5: Yes definitely | R5: Yes to some extent | S5: No | W5: Yes definitely | X5: Yes to some extent | Y5: No | Z5: SMS | AA5: Smartphone | AB5: Smartphone After | AC5: Paper | AD5: Paper After | AE5: Telephone | AF5: Online | AG5: Other
C6: England | D6: 212 | E6: 0.929245283 | F6: 0.02830188679 | G6: 179 | H6: 18 | I6: 7 | J6: 1 | K6: 5 | L6: 2 | M6: 193 | N6: 1491 | O6: 0.9637305699 | P6: 0.03626943005 | Q6: 165 | R6: 21 | S6: 7 | T6: 192 | U6: 0.9895833333 | V6: 0.01041666667 | W6: 181 | X6: 9 | Y6: 2 | Z6: 28 | AA6: 3 | AB6: 0 | AC6: 3 | AD6: 26 | AE6: 39 | AF6: 113 | AG6: 0
C7: Selection (excluding suppressed data) | D7: =SUBTOTAL(9,D8:D857) -> 212 | E7: =IFERROR((G7+H7)/SUM(G7:L7), "-") -> 0.9214285714 | F7: =IFERROR((J7+K7)/SUM(G7:L7), "-") -> 0.02857142857 | G7: =SUBTOTAL(9,G8:G857) -> 114 | H7: 15 | I7: 7 | J7: 0 | K7: 4 | L7: 0 | M7: 193 | N7: 1491 | O7: =IFERROR((Q7+R7)/SUM(Q7:S7), "-") -> 0.9714285714 | P7: =IFERROR(S7/SUM(Q7:S7), "-") -> 0.02857142857 | Q7: =SUBTOTAL(9,Q8:Q857) -> 116 | R7: =SUBTOTAL(9,R8:R857) -> 20 | S7: =SUBTOTAL(9,S8:S857) -> 4 | T7: =SUBTOTAL(9,T8:T857) -> 192 | U7: =IFERROR((W7+X7)/SUM(W7:Y7), "-") -> 0.9939393939 | V7: =IFERROR(Y7/SUM(W7:Y7), "-") -> 0.006060606061 | W7: =SUBTOTAL(9,W8:W857) -> 157 | X7: =SUBTOTAL(9,X8:X857) -> 7 | Y7: =SUBTOTAL(9,Y8:Y857) -> 1 | Z7: =SUBTOTAL(9,Z8:Z857) -> 5 | AA7: =SUBTOTAL(9,AA8:AA857) -> 0 | AB7: =SUBTOTAL(9,AB8:AB857) -> 0 | AC7: =SUBTOTAL(9,AC8:AC857) -> 3 | AD7: =SUBTOTAL(9,AD8:AD857) -> 22 | AE7: =SUBTOTAL(9,AE8:AE857) -> 12 | AF7: =SUBTOTAL(9,AF8:AF857) -> 55 | AG7: =SUBTOTAL(9,AG8:AG857) -> 0
A8: QF7 | B8: RXE | C8: ROTHERHAM DONCASTER AND SOUTH HUMBER NHS FOUNDATION TRUST | D8: 0 | E8: NA | F8: NA | G8: 0 | H8: 0 | I8: 0 | J8: 0 | K8: 0 | L8: 0 | M8: 0 | N8: 0 | O8: NA | P8: NA | Q8: 0 | R8: 0 | S8: 0 | T8: 0 | U8: NA | V8: NA | W8: 0 | X8: 0 | Y8: 0 | Z8: 0 | AA8: 0 | AB8: 0 | AC8: 0 | AD8: 0 | AE8: 0 | AF8: 0 | AG8: 0
A9: QF7 | B9: RHQ | C9: SHEFFIELD TEACHING HOSPITALS NHS FOUNDATION TRUST | D9: 11 | E9: 0.9090909091 | F9: 0 | G9: 10 | H9: 0 | I9: 1 | J9: 0 | K9: 0 | L9: 0 | M9: 11 | N9: 210 | O9: 1 | P9: 0 | Q9: 10 | R9: 1 | S9: 0 | T9: 11 | U9: 1 | V9: 0 | W9: 10 | X9: 1 | Y9: 0 | Z9: 5 | AA9: 0 | AB9: 0 | AC9: 3 | AD9: 0 | AE9: 0 | AF9: 3 | AG9: 0
A10: QF7 | B10: RFR | C10: THE ROTHERHAM NHS FOUNDATION TRUST | D10: 0 | E10: NA | F10: NA | G10: 0 | H10: 0 | I10: 0 | J10: 0 | K10: 0 | L10: 0 | M10: 0 | N10: 0 | O10: NA | P10: NA | Q10: 0 | R10: 0 | S10: 0 | T10: 0 | U10: NA | V10: NA | W10: 0 | X10: 0 | Y10: 0 | Z10: 0 | AA10: 0 | AB10: 0 | AC10: 0 | AD10: 0 | AE10: 0 | AF10: 0 | AG10: 0
A11: QHL | B11: RYW | C11: BIRMINGHAM COMMUNITY HEALTHCARE NHS FOUNDATION TRUST | D11: 0 | E11: NA | F11: NA | G11: 0 | H11: 0 | I11: 0 | J11: 0 | K11: 0 | L11: 0 | M11: 0 | N11: 0 | O11: NA | P11: NA | Q11: 0 | R11: 0 | S11: 0 | T11: 0 | U11: NA | V11: NA | W11: 0 | X11: 0 | Y11: 0 | Z11: 0 | AA11: 0 | AB11: 0 | AC11: 0 | AD11: 0 | AE11: 0 | AF11: 0 | AG11: 0
A12: QHL | B12: RXK | C12: SANDWELL AND WEST BIRMINGHAM HOSPITALS NHS TRUST | D12: 4 | E12: * | F12: * | G12: * | H12: * | I12: * | J12: * | K12: * | L12: * | M12: 4 | N12: 0 | O12: * | P12: * | Q12: * | R12: * | S12: * | T12: 4 | U12: * | V12: * | W12: * | X12: * | Y12: * | Z12: * | AA12: * | AB12: * | AC12: * | AD12: * | AE12: * | AF12: * | AG12: *
A13: QHM | B13: RR7 | C13: GATESHEAD HEALTH NHS FOUNDATION TRUST | D13: 0 | E13: NA | F13: NA | G13: 0 | H13: 0 | I13: 0 | J13: 0 | K13: 0 | L13: 0 | M13: 0 | N13: 0 | O13: NA | P13: NA | Q13: 0 | R13: 0 | S13: 0 | T13: 0 | U13: NA | V13: NA | W13: 0 | X13: 0 | Y13: 0 | Z13: 0 | AA13: 0 | AB13: 0 | AC13: 0 | AD13: 0 | AE13: 0 | AF13: 0 | AG13: 0
A14: QHM | B14: RNN | C14: NORTH CUMBRIA INTEGRATED CARE NHS FOUNDATION TRUST | D14: 0 | E14: NA | F14: NA | G14: 0 | H14: 0 | I14: 0 | J14: 0 | K14: 0 | L14: 0 | M14: 0 | N14: 0 | O14: NA | P14: NA | Q14: 0 | R14: 0 | S14: 0 | T14: 0 | U14: NA | V14: NA | W14: 0 | X14: 0 | Y14: 0 | Z14: 0 | AA14: 0 | AB14: 0 | AC14: 0 | AD14: 0 | AE14: 0 | AF14: 0 | AG14: 0
A15: QHM | B15: RVW | C15: NORTH TEES AND HARTLEPOOL NHS FOUNDATION TRUST | D15: 0 | E15: NA | F15: NA | G15: 0 | H15: 0 | I15: 0 | J15: 0 | K15: 0 | L15: 0 | M15: 0 | N15: 4 | O15: NA | P15: NA | Q15: 0 | R15: 0 | S15: 0 | T15: 0 | U15: NA | V15: NA | W15: 0 | X15: 0 | Y15: 0 | Z15: 0 | AA15: 0 | AB15: 0 | AC15: 0 | AD15: 0 | AE15: 0 | AF15: 0 | AG15: 0
A16: QHM | B16: RTF | C16: NORTHUMBRIA HEALTHCARE NHS FOUNDATION TRUST | D16: 0 | E16: NA | F16: NA | G16: 0 | H16: 0 | I16: 0 | J16: 0 | K16: 0 | L16: 0 | M16: 0 | N16: 0 | O16: NA | P16: NA | Q16: 0 | R16: 0 | S16: 0 | T16: 0 | U16: NA | V16: NA | W16: 0 | X16: 0 | Y16: 0 | Z16: 0 | AA16: 0 | AB16: 0 | AC16: 0 | AD16: 0 | AE16: 0 | AF16: 0 | AG16: 0
A17: QHM | B17: RTR | C17: SOUTH TEES HOSPITALS NHS FOUNDATION TRUST | D17: 0 | E17: NA | F17: NA | G17: 0 | H17: 0 | I17: 0 | J17: 0 | K17: 0 | L17: 0 | M17: 0 | N17: 5 | O17: NA | P17: NA | Q17: 0 | R17: 0 | S17: 0 | T17: 0 | U17: NA | V17: NA | W17: 0 | X17: 0 | Y17: 0 | Z17: 0 | AA17: 0 | AB17: 0 | AC17: 0 | AD17: 0 | AE17: 0 | AF17: 0 | AG17: 0
A18: QHM | B18: R0B | C18: SOUTH TYNESIDE AND SUNDERLAND NHS FOUNDATION TRUST | D18: 3 | E18: * | F18: * | G18: * | H18: * | I18: * | J18: * | K18: * | L18: * | M18: 3 | N18: 0 | O18: * | P18: * | Q18: * | R18: * | S18: * | T18: 3 | U18: * | V18: * | W18: * | X18: * | Y18: * | Z18: * | AA18: * | AB18: * | AC18: * | AD18: * | AE18: * | AF18: * | AG18: *
A19: QHM | B19: RTD | C19: THE NEWCASTLE UPON TYNE HOSPITALS NHS FOUNDATION TRUST | D19: 0 | E19: NA | F19: NA | G19: 0 | H19: 0 | I19: 0 | J19: 0 | K19: 0 | L19: 0 | M19: 0 | N19: 0 | O19: NA | P19: NA | Q19: 0 | R19: 0 | S19: 0 | T19: 0 | U19: NA | V19: NA | W19: 0 | X19: 0 | Y19: 0 | Z19: 0 | AA19: 0 | AB19: 0 | AC19: 0 | AD19: 0 | AE19: 0 | AF19: 0 | AG19: 0
A20: QJ2 | B20: RY8 | C20: DERBYSHIRE COMMUNITY HEALTH SERVICES NHS FOUNDATION TRUST | D20: 22 | E20: 0.8181818182 | F20: 0.09090909091 | G20: 16 | H20: 2 | I20: 2 | J20: 0 | K20: 2 | L20: 0 | M20: 22 | N20: 0 | O20: 0.9090909091 | P20: 0.09090909091 | Q20: 14 | R20: 6 | S20: 2 | T20: 22 | U20: 1 | V20: 0 | W20: 19 | X20: 3 | Y20: 0 | Z20: 0 | AA20: 0 | AB20: 0 | AC20: 0 | AD20: 0 | AE20: 0 | AF20: 0 | AG20: 0
A21: QJG | B21: RDE | C21: EAST SUFFOLK AND NORTH ESSEX NHS FOUNDATION TRUST | D21: 0 | E21: NA | F21: NA | G21: 0 | H21: 0 | I21: 0 | J21: 0 | K21: 0 | L21: 0 | M21: 0 | N21: 0 | O21: NA | P21: NA | Q21: 0 | R21: 0 | S21: 0 | T21: 0 | U21: NA | V21: NA | W21: 0 | X21: 0 | Y21: 0 | Z21: 0 | AA21: 0 | AB21: 0 | AC21: 0 | AD21: 0 | AE21: 0 | AF21: 0 | AG21: 0
A22: QJG | B22: NQA | C22: PROVIDE | D22: 0 | E22: NA | F22: NA | G22: 0 | H22: 0 | I22: 0 | J22: 0 | K22: 0 | L22: 0 | M22: 0 | N22: 0 | O22: NA | P22: NA | Q22: 0 | R22: 0 | S22: 0 | T22: 0 | U22: NA | V22: NA | W22: 0 | X22: 0 | Y22: 0 | Z22: 0 | AA22: 0 | AB22: 0 | AC22: 0 | AD22: 0 | AE22: 0 | AF22: 0 | AG22: 0
A23: QJK | B23: NR5 | C23: LIVEWELL SOUTHWEST | D23: 1 | E23: * | F23: * | G23: * | H23: * | I23: * | J23: * | K23: * | L23: * | M23: 1 | N23: 1 | O23: * | P23: * | Q23: * | R23: * | S23: * | T23: 1 | U23: * | V23: * | W23: * | X23: * | Y23: * | Z23: * | AA23: * | AB23: * | AC23: * | AD23: * | AE23: * | AF23: * | AG23: *
A24: QJM | B24: RY5 | C24: LINCOLNSHIRE COMMUNITY HEALTH SERVICES NHS TRUST | D24: 21 | E24: 1 | F24: 0 | G24: 17 | H24: 4 | I24: 0 | J24: 0 | K24: 0 | L24: 0 | M24: 21 | N24: 230 | O24: 1 | P24: 0 | Q24: 19 | R24: 2 | S24: 0 | T24: 20 | U24: 1 | V24: 0 | W24: 20 | X24: 0 | Y24: 0 | Z24: 0 | AA24: 0 | AB24: 0 | AC24: 0 | AD24: 0 | AE24: 0 | AF24: 0 | AG24: 0
A25: QK1 | B25: RWE | C25: UNIVERSITY HOSPITALS OF LEICESTER NHS TRUST | D25: 0 | E25: NA | F25: NA | G25: 0 | H25: 0 | I25: 0 | J25: 0 | K25: 0 | L25: 0 | M25: 0 | N25: 44 | O25: NA | P25: NA | Q25: 0 | R25: 0 | S25: 0 | T25: 0 | U25: NA | V25: NA | W25: 0 | X25: 0 | Y25: 0 | Z25: 0 | AA25: 0 | AB25: 0 | AC25: 0 | AD25: 0 | AE25: 0 | AF25: 0 | AG25: 0
A26: QKK | B26: RJ1 | C26: GUY'S AND ST THOMAS' NHS FOUNDATION TRUST | D26: 1 | E26: * | F26: * | G26: * | H26: * | I26: * | J26: * | K26: * | L26: * | M26: 1 | N26: 11 | O26: * | P26: * | Q26: * | R26: * | S26: * | T26: 1 | U26: * | V26: * | W26: * | X26: * | Y26: * | Z26: * | AA26: * | AB26: * | AC26: * | AD26: * | AE26: * | AF26: * | AG26: *
A27: QKS | B27: DWN | C27: WEST KENT PRIMARY CARE | D27: 9 | E27: 0.6666666667 | F27: 0.1111111111 | G27: 4 | H27: 2 | I27: 2 | J27: 0 | K27: 1 | L27: 0 | M27: 9 | N27: 4 | O27: 0.8888888889 | P27: 0.1111111111 | Q27: 4 | R27: 4 | S27: 1 | T27: 9 | U27: 1 | V27: 0 | W27: 7 | X27: 2 | Y27: 0 | Z27: 0 | AA27: 0 | AB27: 0 | AC27: 0 | AD27: 0 | AE27: 0 | AF27: 9 | AG27: 0
A28: QMF | B28: RWK | C28: EAST LONDON NHS FOUNDATION TRUST | D28: 0 | E28: NA | F28: NA | G28: 0 | H28: 0 | I28: 0 | J28: 0 | K28: 0 | L28: 0 | M28: 0 | N28: 42 | O28: NA | P28: NA | Q28: 0 | R28: 0 | S28: 0 | T28: 0 | U28: NA | V28: NA | W28: 0 | X28: 0 | Y28: 0 | Z28: 0 | AA28: 0 | AB28: 0 | AC28: 0 | AD28: 0 | AE28: 0 | AF28: 0 | AG28: 0
A29: QMM | B29: RY3 | C29: NORFOLK COMMUNITY HEALTH AND CARE NHS TRUST | D29: 0 | E29: NA | F29: NA | G29: 0 | H29: 0 | I29: 0 | J29: 0 | K29: 0 | L29: 0 | M29: 0 | N29: 0 | O29: NA | P29: NA | Q29: 0 | R29: 0 | S29: 0 | T29: 0 | U29: NA | V29: NA | W29: 0 | X29: 0 | Y29: 0 | Z29: 0 | AA29: 0 | AB29: 0 | AC29: 0 | AD29: 0 | AE29: 0 | AF29: 0 | AG29: 0
A30: QNC | B30: RRE | C30: MIDLANDS PARTNERSHIP UNIVERSITY NHS FOUNDATION TRUST | D30: 12 | E30: 1 | F30: 0 | G30: 11 | H30: 1 | I30: 0 | J30: 0 | K30: 0 | L30: 0 | M30: 12 | N30: 0 | O30: 1 | P30: 0 | Q30: 12 | R30: 0 | S30: 0 | T30: 12 | U30: 1 | V30: 0 | W30: 12 | X30: 0 | Y30: 0 | Z30: 0 | AA30: 0 | AB30: 0 | AC30: 0 | AD30: 0 | AE30: 12 | AF30: 0 | AG30: 0
A31: QNX | B31: RXC | C31: EAST SUSSEX HEALTHCARE NHS TRUST | D31: 0 | E31: NA | F31: NA | G31: 0 | H31: 0 | I31: 0 | J31: 0 | K31: 0 | L31: 0 | M31: 0 | N31: 0 | O31: NA | P31: NA | Q31: 0 | R31: 0 | S31: 0 | T31: 0 | U31: NA | V31: NA | W31: 0 | X31: 0 | Y31: 0 | Z31: 0 | AA31: 0 | AB31: 0 | AC31: 0 | AD31: 0 | AE31: 0 | AF31: 0 | AG31: 0
A32: QNX | B32: RDR | C32: SUSSEX COMMUNITY NHS FOUNDATION TRUST | D32: 0 | E32: NA | F32: NA | G32: 0 | H32: 0 | I32: 0 | J32: 0 | K32: 0 | L32: 0 | M32: 0 | N32: 0 | O32: NA | P32: NA | Q32: 0 | R32: 0 | S32: 0 | T32: 0 | U32: NA | V32: NA | W32: 0 | X32: 0 | Y32: 0 | Z32: 0 | AA32: 0 | AB32: 0 | AC32: 0 | AD32: 0 | AE32: 0 | AF32: 0 | AG32: 0
A33: QOC | B33: R1D | C33: SHROPSHIRE COMMUNITY HEALTH NHS TRUST | D33: 3 | E33: * | F33: * | G33: * | H33: * | I33: * | J33: * | K33: * | L33: * | M33: 3 | N33: 0 | O33: * | P33: * | Q33: * | R33: * | S33: * | T33: 3 | U33: * | V33: * | W33: * | X33: * | Y33: * | Z33: * | AA33: * | AB33: * | AC33: * | AD33: * | AE33: * | AF33: * | AG33: *
A34: QOP | B34: RMC | C34: BOLTON NHS FOUNDATION TRUST | D34: 0 | E34: NA | F34: NA | G34: 0 | H34: 0 | I34: 0 | J34: 0 | K34: 0 | L34: 0 | M34: 0 | N34: 0 | O34: NA | P34: NA | Q34: 0 | R34: 0 | S34: 0 | T34: 0 | U34: NA | V34: NA | W34: 0 | X34: 0 | Y34: 0 | Z34: 0 | AA34: 0 | AB34: 0 | AC34: 0 | AD34: 0 | AE34: 0 | AF34: 0 | AG34: 0
A35: QOP | B35: R0A | C35: MANCHESTER UNIVERSITY NHS FOUNDATION TRUST | D35: 0 | E35: NA | F35: NA | G35: 0 | H35: 0 | I35: 0 | J35: 0 | K35: 0 | L35: 0 | M35: 0 | N35: 79 | O35: NA | P35: NA | Q35: 0 | R35: 0 | S35: 0 | T35: 0 | U35: NA | V35: NA | W35: 0 | X35: 0 | Y35: 0 | Z35: 0 | AA35: 0 | AB35: 0 | AC35: 0 | AD35: 0 | AE35: 0 | AF35: 0 | AG35: 0
A36: QOP | B36: RM3 | C36: NORTHERN CARE ALLIANCE NHS FOUNDATION TRUST | D36: 0 | E36: NA | F36: NA | G36: 0 | H36: 0 | I36: 0 | J36: 0 | K36: 0 | L36: 0 | M36: 0 | N36: 0 | O36: NA | P36: NA | Q36: 0 | R36: 0 | S36: 0 | T36: 0 | U36: NA | V36: NA | W36: 0 | X36: 0 | Y36: 0 | Z36: 0 | AA36: 0 | AB36: 0 | AC36: 0 | AD36: 0 | AE36: 0 | AF36: 0 | AG36: 0
A37: QOP | B37: RWJ | C37: STOCKPORT NHS FOUNDATION TRUST | D37: 2 | E37: * | F37: * | G37: * | H37: * | I37: * | J37: * | K37: * | L37: * | M37: 2 | N37: 14 | O37: * | P37: * | Q37: * | R37: * | S37: * | T37: 2 | U37: * | V37: * | W37: * | X37: * | Y37: * | Z37: * | AA37: * | AB37: * | AC37: * | AD37: * | AE37: * | AF37: * | AG37: *
A38: QOP | B38: RMP | C38: TAMESIDE AND GLOSSOP INTEGRATED CARE NHS FOUNDATION TRUST | D38: 1 | E38: * | F38: * | G38: * | H38: * | I38: * | J38: * | K38: * | L38: * | M38: 1 | N38: 2 | O38: * | P38: * | Q38: * | R38: * | S38: * | T38: 1 | U38: * | V38: * | W38: * | X38: * | Y38: * | Z38: * | AA38: * | AB38: * | AC38: * | AD38: * | AE38: * | AF38: * | AG38: *
A39: QOP | B39: RRF | C39: WRIGHTINGTON, WIGAN AND LEIGH NHS FOUNDATION TRUST | D39: 0 | E39: NA | F39: NA | G39: 0 | H39: 0 | I39: 0 | J39: 0 | K39: 0 | L39: 0 | M39: 0 | N39: 0 | O39: NA | P39: NA | Q39: 0 | R39: 0 | S39: 0 | T39: 0 | U39: NA | V39: NA | W39: 0 | X39: 0 | Y39: 0 | Z39: 0 | AA39: 0 | AB39: 0 | AC39: 0 | AD39: 0 | AE39: 0 | AF39: 0 | AG39: 0
A40: QOQ | B40: RJL | C40: NORTHERN LINCOLNSHIRE AND GOOLE NHS FOUNDATION TRUST | D40: 0 | E40: NA | F40: NA | G40: 0 | H40: 0 | I40: 0 | J40: 0 | K40: 0 | L40: 0 | M40: 0 | N40: 0 | O40: NA | P40: NA | Q40: 0 | R40: 0 | S40: 0 | T40: 0 | U40: NA | V40: NA | W40: 0 | X40: 0 | Y40: 0 | Z40: 0 | AA40: 0 | AB40: 0 | AC40: 0 | AD40: 0 | AE40: 0 | AF40: 0 | AG40: 0
A41: QOQ | B41: RCB | C41: YORK AND SCARBOROUGH TEACHING HOSPITALS NHS FOUNDATION TRUST | D41: 0 | E41: NA | F41: NA | G41: 0 | H41: 0 | I41: 0 | J41: 0 | K41: 0 | L41: 0 | M41: 0 | N41: 1 | O41: NA | P41: NA | Q41: 0 | R41: 0 | S41: 0 | T41: 0 | U41: NA | V41: NA | W41: 0 | X41: 0 | Y41: 0 | Z41: 0 | AA41: 0 | AB41: 0 | AC41: 0 | AD41: 0 | AE41: 0 | AF41: 0 | AG41: 0
A42: QPM | B42: RP1 | C42: NORTHAMPTONSHIRE HEALTHCARE NHS FOUNDATION TRUST | D42: 1 | E42: * | F42: * | G42: * | H42: * | I42: * | J42: * | K42: * | L42: * | M42: 1 | N42: 0 | O42: * | P42: * | Q42: * | R42: * | S42: * | T42: 1 | U42: * | V42: * | W42: * | X42: * | Y42: * | Z42: * | AA42: * | AB42: * | AC42: * | AD42: * | AE42: * | AF42: * | AG42: *
A43: QR1 | B43: RTQ | C43: GLOUCESTERSHIRE HEALTH AND CARE NHS FOUNDATION TRUST | D43: 3 | E43: * | F43: * | G43: * | H43: * | I43: * | J43: * | K43: * | L43: * | M43: 3 | N43: 0 | O43: * | P43: * | Q43: * | R43: * | S43: * | T43: 3 | U43: * | V43: * | W43: * | X43: * | Y43: * | Z43: * | AA43: * | AB43: * | AC43: * | AD43: * | AE43: * | AF43: * | AG43: *
A44: QRL | B44: RW1 | C44: HAMPSHIRE AND ISLE OF WIGHT HEALTHCARE NHS FOUNDATION TRUST | D44: 26 | E44: 0.9230769231 | F44: 0 | G44: 24 | H44: 0 | I44: 2 | J44: 0 | K44: 0 | L44: 0 | M44: 26 | N44: 772 | O44: 1 | P44: 0 | Q44: 24 | R44: 2 | S44: 0 | T44: 26 | U44: 1 | V44: 0 | W44: 26 | X44: 0 | Y44: 0 | Z44: 0 | AA44: 0 | AB44: 0 | AC44: 0 | AD44: 0 | AE44: 0 | AF44: 26 | AG44: 0
A45: QRV | B45: RYJ | C45: IMPERIAL COLLEGE HEALTHCARE NHS TRUST | D45: 0 | E45: NA | F45: NA | G45: 0 | H45: 0 | I45: 0 | J45: 0 | K45: 0 | L45: 0 | M45: 0 | N45: 0 | O45: NA | P45: NA | Q45: 0 | R45: 0 | S45: 0 | T45: 0 | U45: NA | V45: NA | W45: 0 | X45: 0 | Y45: 0 | Z45: 0 | AA45: 0 | AB45: 0 | AC45: 0 | AD45: 0 | AE45: 0 | AF45: 0 | AG45: 0
A46: QRV | B46: R1K | C46: LONDON NORTH WEST UNIVERSITY HEALTHCARE NHS TRUST | D46: 0 | E46: NA | F46: NA | G46: 0 | H46: 0 | I46: 0 | J46: 0 | K46: 0 | L46: 0 | M46: 0 | N46: 0 | O46: NA | P46: NA | Q46: 0 | R46: 0 | S46: 0 | T46: 0 | U46: NA | V46: NA | W46: 0 | X46: 0 | Y46: 0 | Z46: 0 | AA46: 0 | AB46: 0 | AC46: 0 | AD46: 0 | AE46: 0 | AF46: 0 | AG46: 0
A47: QT1 | B47: NR3 | C47: NOTTINGHAM CITYCARE PARTNERSHIP | D47: 0 | E47: NA | F47: NA | G47: 0 | H47: 0 | I47: 0 | J47: 0 | K47: 0 | L47: 0 | M47: 0 | N47: 1 | O47: NA | P47: NA | Q47: 0 | R47: 0 | S47: 0 | T47: 0 | U47: NA | V47: NA | W47: 0 | X47: 0 | Y47: 0 | Z47: 0 | AA47: 0 | AB47: 0 | AC47: 0 | AD47: 0 | AE47: 0 | AF47: 0 | AG47: 0
A48: QT6 | B48: REF | C48: ROYAL CORNWALL HOSPITALS NHS TRUST | D48: 17 | E48: 0.9411764706 | F48: 0.05882352941 | G48: 13 | H48: 3 | I48: 0 | J48: 0 | K48: 1 | L48: 0 | M48: 17 | N48: 0 | O48: 0.9411764706 | P48: 0.05882352941 | Q48: 13 | R48: 3 | S48: 1 | T48: 17 | U48: 0.9411764706 | V48: 0.05882352941 | W48: 16 | X48: 0 | Y48: 1 | Z48: 0 | AA48: 0 | AB48: 0 | AC48: 0 | AD48: 0 | AE48: 0 | AF48: 17 | AG48: 0
A49: QU9 | B49: RXQ | C49: BUCKINGHAMSHIRE HEALTHCARE NHS TRUST | D49: 0 | E49: NA | F49: NA | G49: 0 | H49: 0 | I49: 0 | J49: 0 | K49: 0 | L49: 0 | M49: 0 | N49: 5 | O49: NA | P49: NA | Q49: 0 | R49: 0 | S49: 0 | T49: 0 | U49: NA | V49: NA | W49: 0 | X49: 0 | Y49: 0 | Z49: 0 | AA49: 0 | AB49: 0 | AC49: 0 | AD49: 0 | AE49: 0 | AF49: 0 | AG49: 0
A50: QU9 | B50: RTH | C50: OXFORD UNIVERSITY HOSPITALS NHS FOUNDATION TRUST | D50: 22 | E50: 1 | F50: 0 | G50: 19 | H50: 3 | I50: 0 | J50: 0 | K50: 0 | L50: 0 | M50: 22 | N50: 0 | O50: 1 | P50: 0 | Q50: 20 | R50: 2 | S50: 0 | T50: 22 | U50: 1 | V50: 0 | W50: 21 | X50: 1 | Y50: 0 | Z50: 0 | AA50: 0 | AB50: 0 | AC50: 0 | AD50: 22 | AE50: 0 | AF50: 0 | AG50: 0
A51: QUA | B51: RL4 | C51: THE ROYAL WOLVERHAMPTON NHS TRUST | D51: 0 | E51: NA | F51: NA | G51: 0 | H51: 0 | I51: 0 | J51: 0 | K51: 0 | L51: 0 | M51: 0 | N51: 0 | O51: NA | P51: NA | Q51: 0 | R51: 0 | S51: 0 | T51: 0 | U51: NA | V51: NA | W51: 0 | X51: 0 | Y51: 0 | Z51: 0 | AA51: 0 | AB51: 0 | AC51: 0 | AD51: 0 | AE51: 0 | AF51: 0 | AG51: 0
A52: QUA | B52: RBK | C52: WALSALL HEALTHCARE NHS TRUST | D52: 0 | E52: NA | F52: NA | G52: 0 | H52: 0 | I52: 0 | J52: 0 | K52: 0 | L52: 0 | M52: 0 | N52: 0 | O52: NA | P52: NA | Q52: 0 | R52: 0 | S52: 0 | T52: 0 | U52: NA | V52: NA | W52: 0 | X52: 0 | Y52: 0 | Z52: 0 | AA52: 0 | AB52: 0 | AC52: 0 | AD52: 0 | AE52: 0 | AF52: 0 | AG52: 0
A53: QUE | B53: RT1 | C53: CAMBRIDGESHIRE AND PETERBOROUGH NHS FOUNDATION TRUST | D53: 1 | E53: * | F53: * | G53: * | H53: * | I53: * | J53: * | K53: * | L53: * | M53: 1 | N53: 0 | O53: * | P53: * | Q53: * | R53: * | S53: * | T53: 1 | U53: * | V53: * | W53: * | X53: * | Y53: * | Z53: * | AA53: * | AB53: * | AC53: * | AD53: * | AE53: * | AF53: * | AG53: *
A54: QVV | B54: RDY | C54: DORSET HEALTHCARE UNIVERSITY NHS FOUNDATION TRUST | D54: 7 | E54: 0.8571428571 | F54: 0.1428571429 | G54: * | H54: * | I54: * | J54: * | K54: * | L54: * | M54: 7 | N54: 0 | O54: 1 | P54: 0 | Q54: * | R54: * | S54: * | T54: 7 | U54: 1 | V54: 0 | W54: 7 | X54: 0 | Y54: 0 | Z54: * | AA54: * | AB54: * | AC54: * | AD54: * | AE54: * | AF54: * | AG54: *
A55: QWE | B55: RAX | C55: KINGSTON AND RICHMOND NHS FOUNDATION TRUST | D55: 0 | E55: NA | F55: NA | G55: 0 | H55: 0 | I55: 0 | J55: 0 | K55: 0 | L55: 0 | M55: 0 | N55: 0 | O55: NA | P55: NA | Q55: 0 | R55: 0 | S55: 0 | T55: 0 | U55: NA | V55: NA | W55: 0 | X55: 0 | Y55: 0 | Z55: 0 | AA55: 0 | AB55: 0 | AC55: 0 | AD55: 0 | AE55: 0 | AF55: 0 | AG55: 0
A56: QWE | B56: RJ7 | C56: ST GEORGE'S UNIVERSITY HOSPITALS NHS FOUNDATION TRUST | D56: 2 | E56: * | F56: * | G56: * | H56: * | I56: * | J56: * | K56: * | L56: * | M56: 2 | N56: 0 | O56: * | P56: * | Q56: * | R56: * | S56: * | T56: 2 | U56: * | V56: * | W56: * | X56: * | Y56: * | Z56: * | AA56: * | AB56: * | AC56: * | AD56: * | AE56: * | AF56: * | AG56: *
A57: QWO | B57: RCF | C57: AIREDALE NHS FOUNDATION TRUST | D57: 0 | E57: NA | F57: NA | G57: 0 | H57: 0 | I57: 0 | J57: 0 | K57: 0 | L57: 0 | M57: 0 | N57: 0 | O57: NA | P57: NA | Q57: 0 | R57: 0 | S57: 0 | T57: 0 | U57: NA | V57: NA | W57: 0 | X57: 0 | Y57: 0 | Z57: 0 | AA57: 0 | AB57: 0 | AC57: 0 | AD57: 0 | AE57: 0 | AF57: 0 | AG57: 0
A58: QWO | B58: RWY | C58: CALDERDALE AND HUDDERSFIELD NHS FOUNDATION TRUST | D58: 2 | E58: * | F58: * | G58: * | H58: * | I58: * | J58: * | K58: * | L58: * | M58: 2 | N58: 0 | O58: * | P58: * | Q58: * | R58: * | S58: * | T58: 2 | U58: * | V58: * | W58: * | X58: * | Y58: * | Z58: * | AA58: * | AB58: * | AC58: * | AD58: * | AE58: * | AF58: * | AG58: *
A59: QWO | B59: RXF | C59: MID YORKSHIRE TEACHING NHS TRUST | D59: 19 | E59: 1 | F59: 0 | G59: * | H59: * | I59: * | J59: * | K59: * | L59: * | M59: 19 | N59: 48 | O59: 1 | P59: 0 | Q59: * | R59: * | S59: * | T59: 19 | U59: 1 | V59: 0 | W59: 19 | X59: 0 | Y59: 0 | Z59: * | AA59: * | AB59: * | AC59: * | AD59: * | AE59: * | AF59: * | AG59: *
A60: QWU | B60: RLT | C60: GEORGE ELIOT HOSPITAL NHS TRUST | D60: 0 | E60: NA | F60: NA | G60: 0 | H60: 0 | I60: 0 | J60: 0 | K60: 0 | L60: 0 | M60: 0 | N60: 0 | O60: NA | P60: NA | Q60: 0 | R60: 0 | S60: 0 | T60: 0 | U60: NA | V60: NA | W60: 0 | X60: 0 | Y60: 0 | Z60: 0 | AA60: 0 | AB60: 0 | AC60: 0 | AD60: 0 | AE60: 0 | AF60: 0 | AG60: 0
A61: QWU | B61: RJC | C61: SOUTH WARWICKSHIRE UNIVERSITY NHS FOUNDATION TRUST | D61: 1 | E61: * | F61: * | G61: * | H61: * | I61: * | J61: * | K61: * | L61: * | M61: 1 | N61: 4 | O61: * | P61: * | Q61: * | R61: * | S61: * | T61: 1 | U61: * | V61: * | W61: * | X61: * | Y61: * | Z61: * | AA61: * | AB61: * | AC61: * | AD61: * | AE61: * | AF61: * | AG61: *
A62: QWU | B62: RKB | C62: UNIVERSITY HOSPITALS COVENTRY AND WARWICKSHIRE NHS TRUST | D62: 0 | E62: NA | F62: NA | G62: 0 | H62: 0 | I62: 0 | J62: 0 | K62: 0 | L62: 0 | M62: 0 | N62: 8 | O62: NA | P62: NA | Q62: 0 | R62: 0 | S62: 0 | T62: 0 | U62: NA | V62: NA | W62: 0 | X62: 0 | Y62: 0 | Z62: 0 | AA62: 0 | AB62: 0 | AC62: 0 | AD62: 0 | AE62: 0 | AF62: 0 | AG62: 0
A63: QYG | B63: RXA | C63: CHESHIRE AND WIRRAL PARTNERSHIP NHS FOUNDATION TRUST | D63: 0 | E63: NA | F63: NA | G63: 0 | H63: 0 | I63: 0 | J63: 0 | K63: 0 | L63: 0 | M63: 0 | N63: 0 | O63: NA | P63: NA | Q63: 0 | R63: 0 | S63: 0 | T63: 0 | U63: NA | V63: NA | W63: 0 | X63: 0 | Y63: 0 | Z63: 0 | AA63: 0 | AB63: 0 | AC63: 0 | AD63: 0 | AE63: 0 | AF63: 0 | AG63: 0
A64: QYG | B64: RJN | C64: EAST CHESHIRE NHS TRUST | D64: 2 | E64: * | F64: * | G64: * | H64: * | I64: * | J64: * | K64: * | L64: * | M64: 2 | N64: 6 | O64: * | P64: * | Q64: * | R64: * | S64: * | T64: 2 | U64: * | V64: * | W64: * | X64: * | Y64: * | Z64: * | AA64: * | AB64: * | AC64: * | AD64: * | AE64: * | AF64: * | AG64: *
A65: QYG | B65: RW4 | C65: MERSEY CARE NHS FOUNDATION TRUST | D65: 19 | E65: 1 | F65: 0 | G65: * | H65: * | I65: * | J65: * | K65: * | L65: * | M65: 0 | N65: 0 | O65: NA | P65: NA | Q65: 0 | R65: 0 | S65: 0 | T65: 0 | U65: NA | V65: NA | W65: 0 | X65: 0 | Y65: 0 | Z65: * | AA65: * | AB65: * | AC65: * | AD65: * | AE65: * | AF65: * | AG65: *
A66: QYG | B66: RBT | C66: MID CHESHIRE HOSPITALS NHS FOUNDATION TRUST | D66: 0 | E66: NA | F66: NA | G66: 0 | H66: 0 | I66: 0 | J66: 0 | K66: 0 | L66: 0 | M66: 0 | N66: 0 | O66: NA | P66: NA | Q66: 0 | R66: 0 | S66: 0 | T66: 0 | U66: NA | V66: NA | W66: 0 | X66: 0 | Y66: 0 | Z66: 0 | AA66: 0 | AB66: 0 | AC66: 0 | AD66: 0 | AE66: 0 | AF66: 0 | AG66: 0

Sheet BS (hidden)
B1: Sort | C1: Region (LO) Code | D1: Region (LO) name | E1: Trust code | F1: Trust name | G1: Site Code | H1: Site Name | J1: Sort Lists: | K1: Sort range… | L1: Sort range… | M1: Sort range… | N1: Reference Region List: | O1: Code… | P1: Name… | Q1: Linked Region List: | R1: Code… | S1: Name… | T1: Reference Lists: | U1: Code… | V1: Code… | W1: Name… | X1: Code… | Y1: Name… | Z1: Trusts Linked Lists: | AA1: Code… | AB1: Name… | AC1: Sites Linked Lists: | AH1: CSV Headers
A2: Region (LO) | B2: 1 | C2: 1 | D2: 1 | E2: - | F2: - | G2: - | H2: - | K2: ICB Code | L2: ICB Code | M2: ICB Code | O2: QE1 | P2: LANCASHIRE AND SOUTH CUMBRIA ICB | R2: QE1 | S2: LANCASHIRE AND SOUTH CUMBRIA ICB | U2: QF7 | V2: RXE | W2: ROTHERHAM DONCASTER AND SOUTH HUMBER NHS FOUNDATION TRUST | AA2: DWN | AB2: AIREDALE NHS FOUNDATION TRUST | AH2: Breakdown | AI2: ICB Code | AJ2: Trust Code | AK2: Trust Name | AL2: Q1 - Total Responses | AM2: Q1 - Percentage Positive | AN2: Q1 - Percentage Negative | AO2: Q1 - Very Good | AP2: Q1 - Good | AQ2: Q1 - Neither Good nor Poor | AR2: Q1 - Poor | AS2: Q1 - Very Poor | AT2: Q1 - Don't Know | AU2: Q2 - Total Responses | AV2: Q2 - Total Eligible | AW2: Q2 - Percentage Positive | AX2: Q2 - Percentage Negative | AY2: Q2 - Yes definitely | AZ2: Q2 - Yes to some extent | BA2: Q2 - No | BB2: Q3 - Total Responses | BC2: Q3 - Percentage Positive | BD2: Q3 - Percentage Negative | BE2: Q3 - Yes definitely | BF2: Q3 - Yes to some extent | BG2: Q3 - No
A3: Trusts | B3: 1 | C3: 1 | D3: 1 | E3: 1 | F3: 1 | G3: - | H3: - | K3: ICB Name | L3: Organisation Code | M3: Trust Code | O3: QF7 | P3: SOUTH YORKSHIRE ICB | R3: QF7 | S3: SOUTH YORKSHIRE ICB | U3: QF7 | V3: RHQ | W3: SHEFFIELD TEACHING HOSPITALS NHS FOUNDATION TRUST | AA3: NQA | AB3: BIRMINGHAM COMMUNITY HEALTHCARE NHS FOUNDATION TRUST
A4: Site | B4: 1 | C4: 1 | D4: 1 | E4: 1 | F4: 1 | G4: 1 | H4: 1 | K4: Total Responses - Q1 | L4: Organisation Name | M4: Trust Name | O4: QGH | P4: HEREFORDSHIRE AND WORCESTERSHIRE ICB | R4: QGH | S4: HEREFORDSHIRE AND WORCESTERSHIRE ICB | U4: QF7 | V4: RFR | W4: THE ROTHERHAM NHS FOUNDATION TRUST | AA4: NR3 | AB4: BOLTON NHS FOUNDATION TRUST | AH4: Collection Mode | AI4: ICB Code | AJ4: Trust Code | AK4: Trust Name | AL4: SMS | AM4: Smartphone | AN4: Smartphone After | AO4: Paper | AP4: Paper After | AQ4: Telephone | AR4: Online | AS4: Other
K5: Percentage Positive - Q1 | L5: Total Responses - Q1 | M5: Site Code | O5: QH8 | P5: MID AND SOUTH ESSEX ICB | R5: QH8 | S5: MID AND SOUTH ESSEX ICB | U5: QHL | V5: RYW | W5: BIRMINGHAM COMMUNITY HEALTHCARE NHS FOUNDATION TRUST | AA5: NR5 | AB5: BUCKINGHAMSHIRE HEALTHCARE NHS TRUST
K6: Percentage Negative - Q1 | L6: Percentage Positive - Q1 | M6: Site Name | O6: QHG | P6: BEDFORDSHIRE, LUTON AND MILTON KEYNES ICB | R6: QHG | S6: BEDFORDSHIRE, LUTON AND MILTON KEYNES ICB | U6: QHL | V6: RXK | W6: SANDWELL AND WEST BIRMINGHAM HOSPITALS NHS TRUST | AA6: R0A | AB6: CALDERDALE AND HUDDERSFIELD NHS FOUNDATION TRUST
K7: Very Good - Q1 | L7: Percentage Negative - Q1 | M7: Total Responses | O7: QHL | P7: BIRMINGHAM AND SOLIHULL ICB | R7: QHL | S7: BIRMINGHAM AND SOLIHULL ICB | U7: QHM | V7: RR7 | W7: GATESHEAD HEALTH NHS FOUNDATION TRUST | AA7: R0B | AB7: CAMBRIDGESHIRE AND PETERBOROUGH NHS FOUNDATION TRUST
K8: Good - Q1 | L8: Very Good - Q1 | M8: Total Eligible | O8: QHM | P8: NORTH EAST AND NORTH CUMBRIA ICB | R8: QHM | S8: NORTH EAST AND NORTH CUMBRIA ICB | U8: QHM | V8: RNN | W8: NORTH CUMBRIA INTEGRATED CARE NHS FOUNDATION TRUST | AA8: R1D | AB8: CHESHIRE AND WIRRAL PARTNERSHIP NHS FOUNDATION TRUST
K9: Neither Good nor Poor - Q1 | L9: Good - Q1 | M9: Percentage Positive | O9: QJ2 | P9: DERBY AND DERBYSHIRE ICB | R9: QJ2 | S9: DERBY AND DERBYSHIRE ICB | U9: QHM | V9: RVW | W9: NORTH TEES AND HARTLEPOOL NHS FOUNDATION TRUST | AA9: R1K | AB9: DERBYSHIRE COMMUNITY HEALTH SERVICES NHS FOUNDATION TRUST
K10: Poor - Q1 | L10: Neither Good nor Poor - Q1 | M10: Percentage Negative | O10: QJG | P10: SUFFOLK AND NORTH EAST ESSEX ICB | R10: QJG | S10: SUFFOLK AND NORTH EAST ESSEX ICB | U10: QHM | V10: RTF | W10: NORTHUMBRIA HEALTHCARE NHS FOUNDATION TRUST | AA10: RAX | AB10: DORSET HEALTHCARE UNIVERSITY NHS FOUNDATION TRUST
K11: Very Poor - Q1 | L11: Poor - Q1 | M11: Very Good | O11: QJK | P11: DEVON ICB | R11: QJK | S11: DEVON ICB | U11: QHM | V11: RTR | W11: SOUTH TEES HOSPITALS NHS FOUNDATION TRUST | AA11: RBK | AB11: EAST CHESHIRE NHS TRUST
K12: Don't Know - Q1 | L12: Very Poor - Q1 | M12: Good | O12: QJM | P12: LINCOLNSHIRE ICB | R12: QJM | S12: LINCOLNSHIRE ICB | U12: QHM | V12: R0B | W12: SOUTH TYNESIDE AND SUNDERLAND NHS FOUNDATION TRUST | AA12: RBT | AB12: EAST LONDON NHS FOUNDATION TRUST
K13: Total Responses - Q2 | L13: Don't Know - Q1 | M13: Neither Good nor Poor | O13: QK1 | P13: LEICESTER, LEICESTERSHIRE AND RUTLAND ICB | R13: QK1 | S13: LEICESTER, LEICESTERSHIRE AND RUTLAND ICB | U13: QHM | V13: RTD | W13: THE NEWCASTLE UPON TYNE HOSPITALS NHS FOUNDATION TRUST | AA13: RCB | AB13: EAST SUFFOLK AND NORTH ESSEX NHS FOUNDATION TRUST
K14: Total Eligible - Q2 | L14: Total Responses - Q2 | M14: Poor | O14: QKK | P14: SOUTH EAST LONDON ICB | R14: QKK | S14: SOUTH EAST LONDON ICB | U14: QJ2 | V14: RY8 | W14: DERBYSHIRE COMMUNITY HEALTH SERVICES NHS FOUNDATION TRUST | AA14: RCF | AB14: EAST SUSSEX HEALTHCARE NHS TRUST
K15: Percentage Positive - Q2 | L15: Total Eligible - Q2 | M15: Very Poor | O15: QKS | P15: KENT AND MEDWAY ICB | R15: QKS | S15: KENT AND MEDWAY ICB | U15: QJG | V15: RDE | W15: EAST SUFFOLK AND NORTH ESSEX NHS FOUNDATION TRUST | AA15: RDE | AB15: GATESHEAD HEALTH NHS FOUNDATION TRUST
K16: Percentage Negative - Q2 | L16: Percentage Positive - Q2 | M16: Don't Know | O16: QM7 | P16: HERTFORDSHIRE AND WEST ESSEX ICB | R16: QM7 | S16: HERTFORDSHIRE AND WEST ESSEX ICB | U16: QJG | V16: NQA | W16: PROVIDE | AA16: RDR | AB16: GEORGE ELIOT HOSPITAL NHS TRUST
K17: Yes definitely - Q2 | L17: Percentage Negative - Q2 | O17: QMF | P17: NORTH EAST LONDON ICB | R17: QMF | S17: NORTH EAST LONDON ICB | U17: QJK | V17: NR5 | W17: LIVEWELL SOUTHWEST | AA17: RDY | AB17: GLOUCESTERSHIRE HEALTH AND CARE NHS FOUNDATION TRUST
K18: Yes to some extent - Q2 | L18: Yes definitely - Q2 | O18: QMJ | P18: NORTH CENTRAL LONDON ICB | R18: QMJ | S18: NORTH CENTRAL LONDON ICB | U18: QJM | V18: RY5 | W18: LINCOLNSHIRE COMMUNITY HEALTH SERVICES NHS TRUST | AA18: REF | AB18: GUY'S AND ST THOMAS' NHS FOUNDATION TRUST
K19: No - Q2 | L19: Yes to some extent - Q2 | O19: QMM | P19: NORFOLK AND WAVENEY ICB | R19: QMM | S19: NORFOLK AND WAVENEY ICB | U19: QK1 | V19: RWE | W19: UNIVERSITY HOSPITALS OF LEICESTER NHS TRUST | AA19: RFR | AB19: HAMPSHIRE AND ISLE OF WIGHT HEALTHCARE NHS FOUNDATION TRUST
K20: Total Responses - Q3 | L20: No - Q2 | O20: QNC | P20: STAFFORDSHIRE AND STOKE-ON-TRENT ICB | R20: QNC | S20: STAFFORDSHIRE AND STOKE-ON-TRENT ICB | U20: QKK | V20: RJ1 | W20: GUY'S AND ST THOMAS' NHS FOUNDATION TRUST | AA20: RHQ | AB20: IMPERIAL COLLEGE HEALTHCARE NHS TRUST
K21: Percentage Positive - Q3 | L21: Total Responses - Q3 | O21: QNQ | P21: FRIMLEY ICB | R21: QNQ | S21: FRIMLEY ICB | U21: QKS | V21: DWN | W21: WEST KENT PRIMARY CARE | AA21: RJ1 | AB21: KINGSTON AND RICHMOND NHS FOUNDATION TRUST
K22: Percentage Negative - Q3 | L22: Percentage Positive - Q3 | O22: QNX | P22: SUSSEX ICB | R22: QNX | S22: SUSSEX ICB | U22: QMF | V22: RWK | W22: EAST LONDON NHS FOUNDATION TRUST | AA22: RJ7 | AB22: LINCOLNSHIRE COMMUNITY HEALTH SERVICES NHS TRUST
K23: Yes definitely - Q3 | L23: Percentage Negative - Q3 | O23: QOC | P23: SHROPSHIRE, TELFORD AND WREKIN ICB | R23: QOC | S23: SHROPSHIRE, TELFORD AND WREKIN ICB | U23: QMM | V23: RY3 | W23: NORFOLK COMMUNITY HEALTH AND CARE NHS TRUST | AA23: RJC | AB23: LIVEWELL SOUTHWEST
K24: Yes to some extent - Q3 | L24: Yes definitely - Q3 | O24: QOP | P24: GREATER MANCHESTER ICB | R24: QOP | S24: GREATER MANCHESTER ICB | U24: QNC | V24: RRE | W24: MIDLANDS PARTNERSHIP UNIVERSITY NHS FOUNDATION TRUST | AA24: RJL | AB24: LONDON NORTH WEST UNIVERSITY HEALTHCARE NHS TRUST
K25: No - Q3 | L25: Yes to some extent - Q3 | O25: QOQ | P25: HUMBER AND NORTH YORKSHIRE ICB | R25: QOQ | S25: HUMBER AND NORTH YORKSHIRE ICB | U25: QNX | V25: RXC | W25: EAST SUSSEX HEALTHCARE NHS TRUST | AA25: RJN | AB25: MANCHESTER UNIVERSITY NHS FOUNDATION TRUST
L26: No - Q3 | O26: QOX | P26: BATH AND NORTH EAST SOMERSET, SWINDON AND WILTSHIRE ICB | R26: QOX | S26: BATH AND NORTH EAST SOMERSET, SWINDON AND WILTSHIRE ICB | U26: QNX | V26: RDR | W26: SUSSEX COMMUNITY NHS FOUNDATION TRUST | AA26: RKB | AB26: MERSEY CARE NHS FOUNDATION TRUST
L27: SMS - Q1 | O27: QPM | P27: NORTHAMPTONSHIRE ICB | R27: QPM | S27: NORTHAMPTONSHIRE ICB | U27: QOC | V27: R1D | W27: SHROPSHIRE COMMUNITY HEALTH NHS TRUST | AA27: RL4 | AB27: MID CHESHIRE HOSPITALS NHS FOUNDATION TRUST
L28: Smartphone - Q1 | O28: QR1 | P28: GLOUCESTERSHIRE ICB | R28: QR1 | S28: GLOUCESTERSHIRE ICB | U28: QOP | V28: RMC | W28: BOLTON NHS FOUNDATION TRUST | AA28: RLT | AB28: MID YORKSHIRE TEACHING NHS TRUST
L29: Smartphone After - Q1 | O29: QRL | P29: HAMPSHIRE AND ISLE OF WIGHT ICB | R29: QRL | S29: HAMPSHIRE AND ISLE OF WIGHT ICB | U29: QOP | V29: R0A | W29: MANCHESTER UNIVERSITY NHS FOUNDATION TRUST | AA29: RM3 | AB29: MIDLANDS PARTNERSHIP UNIVERSITY NHS FOUNDATION TRUST
L30: Paper - Q1 | O30: QRV | P30: NORTH WEST LONDON ICB | R30: QRV | S30: NORTH WEST LONDON ICB | U30: QOP | V30: RM3 | W30: NORTHERN CARE ALLIANCE NHS FOUNDATION TRUST | AA30: RMC | AB30: NORFOLK COMMUNITY HEALTH AND CARE NHS TRUST
L31: Paper After - Q1 | O31: QSL | P31: SOMERSET ICB | R31: QSL | S31: SOMERSET ICB | U31: QOP | V31: RWJ | W31: STOCKPORT NHS FOUNDATION TRUST | AA31: RMP | AB31: NORTH CUMBRIA INTEGRATED CARE NHS FOUNDATION TRUST
L32: Telephone - Q1 | O32: QT1 | P32: NOTTINGHAM AND NOTTINGHAMSHIRE ICB | R32: QT1 | S32: NOTTINGHAM AND NOTTINGHAMSHIRE ICB | U32: QOP | V32: RMP | W32: TAMESIDE AND GLOSSOP INTEGRATED CARE NHS FOUNDATION TRUST | AA32: RNN | AB32: NORTH TEES AND HARTLEPOOL NHS FOUNDATION TRUST
L33: Online - Q1 | O33: QT6 | P33: CORNWALL AND THE ISLES OF SCILLY ICB | R33: QT6 | S33: CORNWALL AND THE ISLES OF SCILLY ICB | U33: QOP | V33: RRF | W33: WRIGHTINGTON, WIGAN AND LEIGH NHS FOUNDATION TRUST | AA33: RP1 | AB33: NORTHAMPTONSHIRE HEALTHCARE NHS FOUNDATION TRUST
L34: Other - Q1 | O34: QU9 | P34: BUCKINGHAMSHIRE, OXFORDSHIRE AND BERKSHIRE WEST ICB | R34: QU9 | S34: BUCKINGHAMSHIRE, OXFORDSHIRE AND BERKSHIRE WEST ICB | U34: QOQ | V34: RJL | W34: NORTHERN LINCOLNSHIRE AND GOOLE NHS FOUNDATION TRUST | AA34: RR7 | AB34: NORTHERN CARE ALLIANCE NHS FOUNDATION TRUST
L35: SMS - Q2 | O35: QUA | P35: BLACK COUNTRY ICB | R35: QUA | S35: BLACK COUNTRY ICB | U35: QOQ | V35: RCB | W35: YORK AND SCARBOROUGH TEACHING HOSPITALS NHS FOUNDATION TRUST | AA35: RRE | AB35: NORTHERN LINCOLNSHIRE AND GOOLE NHS FOUNDATION TRUST
L36: Smartphone - Q2 | O36: QUE | P36: CAMBRIDGESHIRE AND PETERBOROUGH ICB | R36: QUE | S36: CAMBRIDGESHIRE AND PETERBOROUGH ICB | U36: QPM | V36: RP1 | W36: NORTHAMPTONSHIRE HEALTHCARE NHS FOUNDATION TRUST | AA36: RRF | AB36: NORTHUMBRIA HEALTHCARE NHS FOUNDATION TRUST
L37: Smartphone After - Q2 | O37: QUY | P37: BRISTOL, NORTH SOMERSET AND SOUTH GLOUCESTERSHIRE ICB | R37: QUY | S37: BRISTOL, NORTH SOMERSET AND SOUTH GLOUCESTERSHIRE ICB | U37: QR1 | V37: RTQ | W37: GLOUCESTERSHIRE HEALTH AND CARE NHS FOUNDATION TRUST | AA37: RT1 | AB37: NOTTINGHAM CITYCARE PARTNERSHIP
L38: Paper - Q2 | O38: QVV | P38: DORSET ICB | R38: QVV | S38: DORSET ICB | U38: QRL | V38: RW1 | W38: HAMPSHIRE AND ISLE OF WIGHT HEALTHCARE NHS FOUNDATION TRUST | AA38: RTD | AB38: OXFORD UNIVERSITY HOSPITALS NHS FOUNDATION TRUST
L39: Paper After - Q2 | O39: QWE | P39: SOUTH WEST LONDON ICB | R39: QWE | S39: SOUTH WEST LONDON ICB | U39: QRV | V39: RYJ | W39: IMPERIAL COLLEGE HEALTHCARE NHS TRUST | AA39: RTF | AB39: PROVIDE
L40: Telephone - Q2 | O40: QWO | P40: WEST YORKSHIRE ICB | R40: QWO | S40: WEST YORKSHIRE ICB | U40: QRV | V40: R1K | W40: LONDON NORTH WEST UNIVERSITY HEALTHCARE NHS TRUST | AA40: RTH | AB40: ROTHERHAM DONCASTER AND SOUTH HUMBER NHS FOUNDATION TRUST
L41: Online - Q2 | O41: QWU | P41: COVENTRY AND WARWICKSHIRE ICB | R41: QWU | S41: COVENTRY AND WARWICKSHIRE ICB | U41: QT1 | V41: NR3 | W41: NOTTINGHAM CITYCARE PARTNERSHIP | AA41: RTQ | AB41: ROYAL CORNWALL HOSPITALS NHS TRUST
L42: Other - Q2 | O42: QXU | P42: SURREY HEARTLANDS ICB | R42: QXU | S42: SURREY HEARTLANDS ICB | U42: QT6 | V42: REF | W42: ROYAL CORNWALL HOSPITALS NHS TRUST | AA42: RTR | AB42: SANDWELL AND WEST BIRMINGHAM HOSPITALS NHS TRUST
L43: SMS - Q3 | O43: QYG | P43: CHESHIRE AND MERSEYSIDE ICB | R43: QYG | S43: CHESHIRE AND MERSEYSIDE ICB | U43: QU9 | V43: RXQ | W43: BUCKINGHAMSHIRE HEALTHCARE NHS TRUST | AA43: RVW | AB43: SHEFFIELD TEACHING HOSPITALS NHS FOUNDATION TRUST
L44: Smartphone - Q3 | U44: QU9 | V44: RTH | W44: OXFORD UNIVERSITY HOSPITALS NHS FOUNDATION TRUST | AA44: RW1 | AB44: SHROPSHIRE COMMUNITY HEALTH NHS TRUST
L45: Smartphone After - Q3 | U45: QUA | V45: RL4 | W45: THE ROYAL WOLVERHAMPTON NHS TRUST | AA45: RW4 | AB45: SOUTH TEES HOSPITALS NHS FOUNDATION TRUST
L46: Paper - Q3 | U46: QUA | V46: RBK | W46: WALSALL HEALTHCARE NHS TRUST | AA46: RWE | AB46: SOUTH TYNESIDE AND SUNDERLAND NHS FOUNDATION TRUST
L47: Paper After - Q3 | U47: QUE | V47: RT1 | W47: CAMBRIDGESHIRE AND PETERBOROUGH NHS FOUNDATION TRUST | AA47: RWJ | AB47: SOUTH WARWICKSHIRE UNIVERSITY NHS FOUNDATION TRUST
L48: Telephone - Q3 | U48: QVV | V48: RDY | W48: DORSET HEALTHCARE UNIVERSITY NHS FOUNDATION TRUST | AA48: RWK | AB48: ST GEORGE'S UNIVERSITY HOSPITALS NHS FOUNDATION TRUST
L49: Online - Q3 | U49: QWE | V49: RAX | W49: KINGSTON AND RICHMOND NHS FOUNDATION TRUST | AA49: RWY | AB49: STOCKPORT NHS FOUNDATION TRUST
L50: Other - Q3 | U50: QWE | V50: RJ7 | W50: ST GEORGE'S UNIVERSITY HOSPITALS NHS FOUNDATION TRUST | AA50: RXA | AB50: SUSSEX COMMUNITY NHS FOUNDATION TRUST
U51: QWO | V51: RCF | W51: AIREDALE NHS FOUNDATION TRUST | AA51: RXC | AB51: TAMESIDE AND GLOSSOP INTEGRATED CARE NHS FOUNDATION TRUST
U52: QWO | V52: RWY | W52: CALDERDALE AND HUDDERSFIELD NHS FOUNDATION TRUST | AA52: RXE | AB52: THE NEWCASTLE UPON TYNE HOSPITALS NHS FOUNDATION TRUST
U53: QWO | V53: RXF | W53: MID YORKSHIRE TEACHING NHS TRUST | AA53: RXF | AB53: THE ROTHERHAM NHS FOUNDATION TRUST
U54: QWU | V54: RLT | W54: GEORGE ELIOT HOSPITAL NHS TRUST | AA54: RXK | AB54: THE ROYAL WOLVERHAMPTON NHS TRUST
U55: QWU | V55: RJC | W55: SOUTH WARWICKSHIRE UNIVERSITY NHS FOUNDATION TRUST | AA55: RXQ | AB55: UNIVERSITY HOSPITALS COVENTRY AND WARWICKSHIRE NHS TRUST
U56: QWU | V56: RKB | W56: UNIVERSITY HOSPITALS COVENTRY AND WARWICKSHIRE NHS TRUST | AA56: RY3 | AB56: UNIVERSITY HOSPITALS OF LEICESTER NHS TRUST
U57: QYG | V57: RXA | W57: CHESHIRE AND WIRRAL PARTNERSHIP NHS FOUNDATION TRUST | AA57: RY5 | AB57: WALSALL HEALTHCARE NHS TRUST
U58: QYG | V58: RJN | W58: EAST CHESHIRE NHS TRUST | AA58: RY8 | AB58: WEST KENT PRIMARY CARE
U59: QYG | V59: RW4 | W59: MERSEY CARE NHS FOUNDATION TRUST | AA59: RYJ | AB59: WRIGHTINGTON, WIGAN AND LEIGH NHS FOUNDATION TRUST
U60: QYG | V60: RBT | W60: MID CHESHIRE HOSPITALS NHS FOUNDATION TRUST | AA60: RYW | AB60: YORK AND SCARBOROUGH TEACHING HOSPITALS NHS FOUNDATION TRUST
